bitfinex/quotes_ETHUSD_20240926
["timestamp","ask_amount","ask_price","bid_price","bid_amount"]
[1727382918553,3.78397,2642.8,2642.4,3.78443]
[1727382918757,5.10067,2643.0,2642.5,0.55]
[1727382918964,3.78367,2643.0,2642.5,0.55]
[1727382919189,3.78372,2642.9,2642.5,0.55]
[1727382919604,3.78367,2643.0,2642.5,0.55]
[1727382919774,3.78367,2643.0,2642.5,4.33419]
[1727382920113,3.73345927,2643.0,2642.5,4.33419]
[1727382920486,3.78372,2642.9,2642.5,0.55]
[1727382921377,3.73345927,2643.0,2642.5,0.55]
[1727382921813,3.78376,2642.9,2642.5,0.55]
[1727382922683,3.78376,2642.9,2642.5,4.33427]
[1727382923033,1.373,2642.8,2641.0,0.3794]
[1727382923323,3.78515,2641.9,2641.3,3.78589]
[1727382923691,7.56997,2642.1,2641.3,3.78589]
[1727382924029,3.78502,2642.0,2641.3,3.78589]
[1727382924326,3.78487,2642.1,2641.5,3.78564]
[1727382924479,7.56929,2642.3,2641.6,0.55]
[1727382924684,7.56929,2642.3,2641.6,4.769064]
[1727382924685,3.78473,2642.2,2641.6,4.769064]
[1727382925115,3.78487,2642.1,2641.6,0.983564]
[1727382925525,3.78466,2642.3,2641.6,0.983564]
[1727382925813,3.78472,2642.2,2641.8,0.55]
[1727382926020,3.78493,2642.1,2641.6,4.33557]
[1727382926218,3.78493,2642.1,2641.6,5.147691]
[1727382926376,3.78493,2642.1,2641.6,1.362121]
[1727382926796,3.78501,2642.0,2641.6,1.362121]
[1727382927234,3.78472,2642.2,2641.6,1.362121]
[1727382927421,3.78472,2642.2,2641.8,0.55]
[1727382927624,3.78462,2642.3,2641.8,4.33529]
[1727382927941,3.78454,2642.4,2641.8,4.33529]
[1727382928436,3.78425,2642.6,2641.8,0.55]
[1727382928732,3.78425,2642.6,2641.7,0.5147761]
[1727382928733,3.78434,2642.5,2642.0,0.55]
[1727382929531,3.78447,2642.4,2642.0,0.55]
[1727382929733,3.78434,2642.5,2642.0,0.55]
[1727382929909,7.56876,2642.5,2642.2,0.55]
[1727382930437,3.78445,2642.4,2642.2,0.55]
[1727382930646,3.78458,2642.3,2642.2,0.55]
[1727382930797,3.78448,2642.4,2642.2,0.55]
[1727382931134,3.78448,2642.4,2642.0,0.55]
[1727382931342,3.78448,2642.4,2642.2,0.55]
[1727382932136,0.09881751,2642.3,2642.2,0.55]
[1727382933103,0.09881751,2642.3,2642.0,0.55]
[1727382933941,0.09881751,2642.3,2642.0,3.785]
[1727382934163,0.09881751,2642.3,2642.2,0.55]
[1727382935539,0.09881751,2642.3,2642.2,4.41041305]
[1727382935740,3.78391,2642.8,2642.2,4.41041305]
[1727382935909,0.09672668,2642.7,2642.4,0.55]
[1727382936112,3.78391,2642.8,2642.6,0.55]
[1727382936438,0.09672668,2642.7,2642.6,0.55]
[1727382936734,3.784,2642.7,2642.3,0.55]
[1727382936899,0.09661742,2642.6,2642.3,0.55]
[1727382937351,0.09661742,2642.6,2642.2,7.99107]
[1727382937352,0.09661742,2642.6,2642.2,0.55]
[1727382937645,3.78501,2642.0,2641.6,3.78553]
[1727382937799,3.78522,2641.9,2641.4,3.78578]
[1727382938004,3.88151767,2641.9,2641.4,3.78578]
[1727382938244,0.09629767,2641.9,2641.5,3.78571]
[1727382938546,0.09629767,2641.9,2640.9,0.0379631]
[1727382938839,0.09629767,2641.9,2641.2,3.78608]
[1727382938840,3.78559,2641.6,2641.2,3.78608]
[1727382939198,0.09612379,2641.5,2641.1,3.78628]
[1727382939401,0.09612379,2641.5,2641.1,4.84735131]
[1727382939912,3.786,2641.4,2640.9,3.8244331]
[1727382940114,3.78602,2641.3,2640.9,3.8244331]
[1727382940298,3.88168934,2641.3,2640.9,3.8244331]
[1727382940503,0.09566934,2641.3,2641.0,3.78637]
[1727382940705,0.09566934,2641.3,2640.9,4.58555741]
[1727382941014,0.09555578,2641.2,2641.0,3.78643]
[1727382941410,3.78588,2641.4,2640.9,8.37207741]
[1727382941613,0.09544641,2641.1,2640.9,4.58555741]
[1727382941913,3.78588,2641.4,2641.0,0.55]
[1727382942828,3.78561,2641.6,2641.2,0.55]
[1727382943147,3.78574,2641.5,2641.2,0.55]
[1727382943651,3.78574,2641.5,2641.1,0.55]
[1727382944137,3.78574,2641.5,2641.1,4.33629]
[1727382944514,7.57083,2641.8,2641.2,3.78613]
[1727382944718,3.7854,2641.8,2641.3,0.55]
[1727382944920,3.78584,2641.5,2641.0,0.55]
[1727382945240,3.88086456,2641.4,2641.0,0.55]
[1727382945414,5.23136456,2641.4,2641.0,0.55]
[1727382946042,3.78608,2641.3,2641.0,0.55]
[1727382946404,0.09479266,2641.2,2641.0,0.55]
[1727382946613,0.09479266,2641.2,2641.0,4.33643]
[1727382946833,1.3505,2641.4,2641.0,4.33643]
[1727382947032,0.09468328,2641.1,2641.0,4.33643]
[1727382947232,1.3505,2641.4,2641.0,4.33643]
[1727382947435,0.09468328,2641.1,2641.0,4.33643]
[1727382947650,1.3505,2641.4,2641.0,4.33643]
[1727382947850,0.09468328,2641.1,2641.0,0.55]
[1727382948042,5.13639,2641.4,2641.0,0.55]
[1727382948240,0.09468328,2641.1,2641.0,0.55]
[1727382948850,5.13639,2641.4,2641.0,0.55]
[1727382949333,0.09490203,2641.3,2641.0,0.55]
[1727382950531,0.09490203,2641.3,2641.0,4.33644]
[1727382950962,3.78577,2641.5,2641.0,4.33644]
[1727382950963,3.78584,2641.5,2641.0,0.55]
[1727382951148,6.78644,2641.0,2640.9,0.0379631]
[1727382951358,6.88141625,2641.0,2640.9,0.0379631]
[1727382952036,3.78759,2640.2,2640.1,0.0379631]
[1727382952434,3.88137416,2640.2,2640.1,0.0379631]
[1727382953170,5.24507416,2640.2,2640.1,0.0379631]
[1727382955736,0.09378416,2640.2,2640.1,0.5879631]
[1727382955936,3.78759,2640.2,2640.1,0.5879631]
[1727382956140,3.88023745,2640.2,2640.1,0.5879631]
[1727382958966,5.24393745,2640.2,2640.1,0.5879631]
[1727382959898,3.88023745,2640.2,2640.1,0.5879631]
[1727382960175,5.24393745,2640.2,2640.1,0.5879631]
[1727382962775,0.09264745,2640.2,2640.1,0.5879631]
[1727382962951,3.78759,2640.2,2640.1,0.5879631]
[1727382963137,3.88007355,2640.2,2640.1,0.5879631]
[1727382965348,8.19117355,2640.2,2640.1,0.0379631]
[1727382965597,8.73437598,2640.2,2640.1,0.0379631]
[1727382965798,3.78873,2639.4,2639.3,0.0379631]
[1727382966085,3.88099513,2639.4,2639.3,0.0379631]
[1727382966463,5.19209513,2639.4,2639.3,0.0379631]
[1727382966654,5.19209513,2639.4,2638.5,0.0379631]
[1727382966655,5.10098,2638.6,2638.5,0.0379631]
[1727382967086,5.19149125,2638.6,2638.5,0.0379631]
[1727382968549,3.88039125,2638.6,2638.5,0.5879631]
[1727382968953,0.09051125,2638.6,2638.5,0.5879631]
[1727382969266,3.88039125,2638.6,2638.5,0.5879631]
[1727382970178,0.09051125,2638.6,2638.5,0.5879631]
[1727382970576,3.88039125,2638.6,2638.5,0.5879631]
[1727382973015,3.88039125,2638.6,2638.5,0.0379631]
[1727382980156,3.88039125,2638.6,2638.5,0.5879631]
[1727382983667,3.88039125,2638.6,2638.5,0.0379631]
[1727382984867,3.7888,2639.4,2638.9,4.33945]
[1727382985080,5.44153557,2639.5,2639.4,0.55]
[1727382985081,0.39612557,2639.5,2639.4,0.55]
[1727382985230,5.04469,2640.0,2639.4,0.55]
[1727382985582,3.78746,2640.3,2639.4,0.55]
[1727382985583,3.78809,2639.9,2639.6,0.55]
[1727382985777,3.78809,2639.9,2639.5,0.55]
[1727382985778,0.06740761,2639.9,2639.5,0.55]
[1727382986065,7.5759,2640.0,2639.5,0.55]
[1727382986265,3.78794,2640.0,2639.7,0.55]
[1727382986466,3.8554922,2639.9,2639.7,0.55]
[1727382986629,3.78823,2639.8,2639.4,3.78873]
[1727382987042,0.06716768,2639.7,2639.5,0.55]
[1727382987370,3.78794,2640.0,2639.5,4.772353]
[1727382987754,0.06743125,2639.9,2639.5,4.772353]
[1727382988360,0.06743125,2639.9,2639.6,3.78843]
[1727382988551,3.78764,2640.2,2639.7,1.03480678]
[1727382988753,0.0676502,2640.1,2639.7,1.03480678]
[1727382989184,0.0676502,2640.1,2639.7,4.82309678]
[1727382989344,0.0676502,2640.1,2640.0,0.55]
[1727382989548,3.78739,2640.4,2639.7,4.82296678]
[1727382989749,3.85302761,2640.3,2639.9,0.55]
[1727382989969,3.7876,2640.2,2639.9,0.55]
[1727382990212,0.0653487,2640.1,2639.9,0.55]
[1727382990545,3.78739,2640.4,2639.9,4.33801]
[1727382990745,0.06556761,2640.3,2639.9,5.24733865]
[1727382990990,3.78761,2640.2,2639.9,1.45932865]
[1727382991164,0.0653487,2640.1,2639.9,1.45932865]
[1727382992188,0.0653487,2640.1,2639.8,0.55]
[1727382992495,3.78812,2639.9,2639.4,3.78871]
[1727382992791,0.06542734,2639.8,2639.4,3.78871]
[1727382992989,3.78795,2640.0,2639.5,0.757748]
[1727382993290,3.78825,2639.8,2639.5,0.757748]
[1727382993496,3.78825,2639.8,2639.3,7.57766]
[1727382993655,0.0652585,2639.7,2639.4,0.55]
[1727382993851,3.78802,2639.9,2639.4,4.33873]
[1727382994058,3.78802,2639.9,2639.6,0.55]
[1727382995197,3.78795,2640.0,2639.6,0.55]
[1727382996288,7.57591,2640.0,2639.6,0.55]
[1727382996494,0.06603734,2639.9,2639.6,1.0651286]
[1727382998155,3.78803,2639.9,2639.6,1.0651286]
[1727382998356,0.06595949,2639.8,2639.6,1.0651286]
[1727382999273,0.06595949,2639.8,2639.6,0.55]
[1727383002183,1.2567,2640.5,2639.7,0.55]
[1727383002373,3.78726,2640.5,2640.3,0.55]
[1727383002572,0.05705367,2640.4,2639.8,3.78804]
[1727383002771,1.2567,2640.8,2640.0,0.55]
[1727383002772,3.78747,2640.3,2640.0,0.55]
[1727383002984,0.05683475,2640.2,2640.0,1.05729572]
[1727383003182,3.78747,2640.3,2640.0,1.05729572]
[1727383003380,0.05687933,2640.2,2640.0,1.05729572]
[1727383003667,7.57445,2640.5,2640.0,4.84516572]
[1727383003870,0.05676986,2640.1,2640.0,4.84516572]
[1727383004103,7.57445,2640.5,2640.0,4.84516572]
[1727383004302,3.78716,2640.5,2640.2,0.55]
[1727383004511,0.05714282,2640.4,2640.2,0.55]
[1727383004806,3.84446282,2640.4,2640.2,0.55]
[1727383005007,3.84446282,2640.4,2640.1,0.55]
[1727383005684,0.05714282,2640.4,2640.1,0.55]
[1727383005886,3.78745,2640.3,2640.1,0.55]
[1727383006410,0.05714282,2640.4,2640.1,0.55]
[1727383006411,0.05698945,2640.2,2640.1,0.55]
[1727383006618,3.78746,2640.3,2640.0,0.55]
[1727383006908,0.05698945,2640.2,2640.0,0.55]
[1727383007273,3.78746,2640.3,2640.0,0.55]
[1727383007470,0.05687999,2640.1,2639.9,0.55]
[1727383007825,0.05677051,2640.0,2639.9,0.55]
[1727383008183,3.78731,2640.4,2639.9,1.717804]
[1727383008391,0.05628558,2640.3,2639.9,1.717804]
[1727383008911,0.05628558,2640.3,2639.9,5.505784]
[1727383010232,0.05628558,2640.3,2639.5,3.78854]
[1727383010233,5.09483558,2640.3,2639.5,3.78854]
[1727383010529,7.57568,2640.1,2639.6,3.78838]
[1727383010874,0.05554385,2640.0,2639.6,3.78838]
[1727383011077,0.05554385,2640.0,2639.6,4.546072]
[1727383012046,0.05554385,2640.0,2639.6,0.757692]
[1727383012314,0.05554385,2640.0,2639.7,4.3383]
[1727383013009,3.78739,2640.4,2639.9,4.33795]
[1727383013607,2.0,2641.5,2639.9,4.33795]
[1727383013608,5.03776,2640.8,2640.3,3.78731]
[1727383013786,5.03776,2640.8,2640.4,3.78729]
[1727383014112,5.03776,2640.8,2640.5,0.55]
[1727383014315,0.05446323,2640.7,2640.5,0.55]
[1727383014486,5.03776,2640.8,2640.4,0.55]
[1727383014690,0.0543538,2640.6,2640.4,0.55]
[1727383014906,3.7869,2640.7,2640.4,0.55]
[1727383015101,0.05424437,2640.5,2640.4,0.55]
[1727383015307,5.03774,2640.8,2640.4,0.55]
[1727383015624,0.05428894,2640.5,2640.4,0.55]
[1727383015777,3.8414678,2640.7,2640.4,0.55]
[1727383018328,3.78703,2640.6,2640.2,4.33757]
[1727383018523,3.84142837,2640.6,2640.2,4.33757]
[1727383019832,3.78718,2640.5,2640.1,0.55]
[1727383020041,3.78718,2640.5,2640.1,4.33767]
[1727383020334,1.251,2640.8,2639.9,4.600501]
[1727383020335,3.78754,2640.3,2639.9,4.600501]
[1727383020536,3.78754,2640.3,2639.8,7.34]
[1727383020537,3.78765,2640.2,2639.8,7.34]
[1727383020832,3.78789,2640.0,2639.6,3.78842]
[1727383021038,0.05379779,2639.9,2639.8,3.78803]
[1727383021335,3.78732,2640.4,2639.9,3.7879]
[1727383021545,3.78732,2640.4,2640.0,3.78786]
[1727383021722,0.05443526,2640.3,2640.0,3.78786]
[1727383022031,0.05443526,2640.3,2639.9,4.166813]
[1727383022242,0.05443526,2640.3,2639.7,0.55]
[1727383022394,0.05443526,2640.3,2639.4,3.78863]
[1727383022395,3.78784,2640.1,2639.4,3.78863]
[1727383022598,3.78808,2639.9,2639.4,3.78863]
[1727383022794,0.05450881,2640.0,2639.9,3.78802]
[1727383023197,3.78708,2640.6,2640.2,3.78757]
[1727383023399,3.78688,2640.7,2640.2,3.78757]
[1727383023699,0.05053837,2640.6,2640.3,0.55]
[1727383025033,0.05053837,2640.6,2640.3,4.33738]
[1727383025235,0.05053837,2640.6,2640.3,1.362488]
[1727383025439,3.78708,2640.6,2640.3,1.362488]
[1727383025607,0.05020603,2640.5,2640.2,0.55]
[1727383028499,0.05020603,2640.5,2639.7,3.78823]
[1727383028500,3.78751,2640.3,2639.4,0.734]
[1727383028695,3.78751,2640.3,2639.7,3.7882]
[1727383028696,3.78761,2640.2,2639.7,3.7882]
[1727383028930,3.78761,2640.2,2639.8,3.78812]
[1727383028931,3.83775518,2640.2,2639.8,3.78812]
[1727383029133,3.83775518,2640.2,2639.9,0.757632]
[1727383029621,3.83775518,2640.2,2639.7,3.78829]
[1727383030023,3.83775518,2640.2,2639.8,0.55]
[1727383030236,0.05004421,2640.1,2639.8,0.55]
[1727383030452,0.05004421,2640.1,2639.5,1.83397518]
[1727383030453,3.78821,2639.8,2639.5,1.83397518]
[1727383030644,3.78832,2639.7,2639.3,3.78876]
[1727383030807,0.0496278,2639.6,2639.3,3.78876]
[1727383031007,0.0496278,2639.6,2639.4,0.89594641]
[1727383031317,3.78832,2639.7,2639.4,0.89594641]
[1727383031953,1.2779,2640.0,2639.4,0.89594641]
[1727383031954,1.2779,2640.0,2639.5,0.55]
[1727383032125,3.78838,2639.7,2639.3,3.7888]
[1727383032577,0.04942821,2639.6,2639.3,3.7888]
[1727383032901,0.04942821,2639.6,2639.4,0.37888]
[1727383033166,0.04942821,2639.6,2639.4,0.37728245]
[1727383033464,0.04942821,2639.6,2639.5,0.55]
[1727383034236,0.04942821,2639.6,2639.4,0.55]
[1727383034769,3.83787821,2639.6,2639.4,0.55]
[1727383034957,3.83787821,2639.6,2639.2,3.789]
[1727383034958,1.2779,2639.5,2639.3,0.55]
[1727383035333,0.04920918,2639.4,2639.3,0.55]
[1727383035855,0.04920918,2639.4,2638.7,7.34]
[1727383035856,5.06727,2639.0,2638.7,7.34]
[1727383036169,3.78988,2638.6,2638.5,0.0379631]
[1727383036386,3.78986,2638.7,2638.5,0.0379631]
[1727383036387,3.78974,2638.7,2638.5,0.0379631]
[1727383036671,0.04844752,2638.6,2638.5,0.0379631]
[1727383038130,0.04844752,2638.6,2638.5,0.5879631]
[1727383043463,3.83832752,2638.6,2638.5,0.5879631]
[1727383043685,3.83673205,2638.6,2638.5,0.5879631]
[1727383044297,0.04685205,2638.6,2638.5,0.5879631]
[1727383045069,3.7896,2638.8,2638.5,0.5879631]
[1727383045368,3.7896,2638.8,2638.6,0.55]
[1727383046255,8.85669,2639.0,2638.6,0.55]
[1727383046584,5.06727,2639.0,2638.6,0.55]
[1727383047251,8.85666,2639.0,2638.6,0.55]
[1727383048084,5.06727,2639.0,2638.6,0.55]
[1727383048473,8.85667,2639.0,2638.6,0.55]
[1727383048675,1.2779,2639.0,2638.7,3.78973]
[1727383048881,0.04671763,2638.9,2638.8,4.3396]
[1727383049248,3.78875,2639.4,2638.9,3.78939]
[1727383049577,3.78875,2639.4,2638.5,3.52334356]
[1727383049578,3.78848,2639.6,2639.3,0.55]
[1727383049779,3.78848,2639.6,2639.3,0.983902]
[1727383049976,3.78848,2639.6,2639.3,0.55]
[1727383050450,4.77181,2639.9,2639.3,4.33887]
[1727383050656,4.77181,2639.9,2639.5,0.55]
[1727383050885,3.78788,2640.0,2639.5,4.827437]
[1727383051199,3.78788,2640.0,2639.7,0.55]
[1727383051486,3.78774,2640.1,2639.7,3.7883]
[1727383051785,7.57482,2640.4,2640.0,0.55]
[1727383051993,3.7874,2640.4,2640.0,0.55]
[1727383052485,0.04355845,2640.3,2640.0,0.55]
[1727383053482,0.04355845,2640.3,2640.1,0.55]
[1727383053849,3.78737,2640.4,2639.9,4.33801]
[1727383054192,0.04039044,2640.3,2639.9,5.188499]
[1727383054592,0.04039044,2640.3,2640.0,3.78785]
[1727383054812,0.04039044,2640.3,2640.2,4.33759]
[1727383055093,5.18705966,2641.5,2641.0,4.33636]
[1727383055295,3.78559,2641.6,2641.1,0.07571864]
[1727383055470,3.78559,2641.6,2641.0,4.33636]
[1727383055792,3.78575,2641.5,2640.9,0.55]
[1727383055992,3.78588,2641.4,2640.9,0.55]
[1727383056153,3.78617,2641.2,2640.9,0.55]
[1727383056349,3.78646,2641.0,2640.6,0.55]
[1727383057293,8.57762,2641.2,2640.6,5.47774134]
[1727383057791,3.78631,2641.1,2640.6,5.47774134]
[1727383057968,3.78631,2641.1,2640.6,4.337]
[1727383058791,3.78631,2641.1,2640.6,0.55]
[1727383059092,3.7865,2641.0,2640.6,0.55]
[1727383059391,3.78631,2641.1,2640.6,0.55]
[1727383059392,3.78631,2641.1,2640.6,4.33698]
[1727383060396,3.78631,2641.1,2640.5,0.55]
[1727383060697,1.0052,2641.2,2640.7,3.78686]
[1727383060698,4.79139,2641.2,2640.7,3.78686]
[1727383060893,4.79139,2641.2,2640.7,0.55]
[1727383061459,3.78631,2641.1,2640.7,0.55]
[1727383062296,3.78609,2641.3,2640.9,0.55]
[1727383064698,3.78616,2641.2,2640.7,4.3368]
[1727383072600,3.78616,2641.2,2640.9,0.55]
[1727383073986,0.0379631,2641.7,2641.1,3.78629]
[1727383074329,0.0379631,2641.7,2641.4,0.55]
[1727383074617,0.0379631,2641.7,2641.5,0.55]
[1727383075202,0.0379631,2641.7,2641.5,4.3357]
[1727383075407,0.0379631,2641.7,2641.6,0.98357]
[1727383075920,0.0379631,2641.7,2641.6,4.76915]
[1727383077508,0.0379631,2641.7,2641.6,4.84484867]
[1727383078887,0.0379631,2641.7,2641.6,4.76915]
[1727383080221,0.0379631,2641.7,2641.2,3.78606]
[1727383080421,0.8543631,2641.7,2641.3,3.78588]
[1727383080608,0.8543631,2641.7,2641.3,7.57178]
[1727383080811,0.8543631,2641.7,2641.3,3.78588]
[1727383081220,3.78567,2641.6,2641.1,3.78619]
[1727383081518,4.6398031,2641.7,2641.3,3.786]
[1727383081832,3.78569,2641.6,2641.1,3.78619]
[1727383082619,3.78569,2641.6,2641.2,0.55]
[1727383083317,3.78574,2641.5,2641.2,0.55]
[1727383085428,3.7856,2641.6,2641.2,0.55]
[1727383086292,3.7856,2641.6,2641.2,4.33615]
[1727383086495,0.8543631,2641.7,2641.3,3.786]
[1727383086830,4.6398631,2641.7,2641.4,0.55]
[1727383087124,4.6398631,2641.7,2641.2,3.78614]
[1727383087125,4.6398631,2641.7,2641.3,0.55]
[1727383090749,0.0379631,2641.7,2641.5,3.78562]
[1727383090887,0.0379631,2641.7,2641.6,0.55]
[1727383091296,0.0379631,2641.7,2641.6,4.33558]
[1727383091527,0.0379631,2641.7,2641.6,4.41128532]
[1727383091835,0.0379631,2641.7,2641.6,5.50380858]
[1727383092199,0.0379631,2641.7,2641.6,5.57951365]
[1727383092412,0.0379631,2641.7,2641.6,5.50380858]
[1727383095038,0.0379631,2641.7,2641.6,5.57950708]
[1727383095337,0.8085631,2642.5,2641.6,5.57950708]
[1727383095338,0.8085631,2642.5,2642.1,3.7848]
[1727383095637,0.8085631,2642.5,2642.2,0.55]
[1727383096476,0.8085631,2642.5,2642.2,4.33471]
[1727383103462,4.5928531,2642.5,2642.4,0.55]
[1727383103701,0.8107,2642.0,2641.4,3.78585]
[1727383103871,0.8107,2642.0,2641.7,3.78531]
[1727383105069,0.8107,2642.0,2641.6,4.33548]
[1727383108311,0.8107,2642.0,2641.8,0.55]
[1727383109383,0.8107,2642.0,2641.9,0.55]
[1727383111698,0.8107,2642.3,2642.1,3.78485]
[1727383111904,0.8486631,2642.5,2642.2,0.55]
[1727383112136,0.0379631,2642.5,2642.4,4.33443]
[1727383112444,0.0379631,2642.5,2642.4,5.146322]
[1727383112915,0.0379631,2642.5,2642.4,5.22199822]
[1727383113124,0.0379631,2642.5,2642.4,8.22199822]
[1727383113292,0.0379631,2642.5,2642.4,8.146322]
[1727383115508,0.0379631,2643.3,2643.1,3.78342]
[1727383115828,0.0379631,2643.3,2643.2,4.33329]
[1727383115983,0.0379631,2643.3,2643.2,5.144961]
[1727383117133,0.0379631,2643.3,2643.2,5.22062034]
[1727383117283,0.0379631,2643.3,2643.2,5.144961]
[1727383117731,0.0379631,2643.3,2643.2,5.22061579]
[1727383117932,0.0379631,2643.3,2643.2,8.22061579]
[1727383118239,0.0379631,2643.3,2643.2,8.144961]
[1727383118727,0.0379631,2644.0,2643.9,3.78229]
[1727383119318,0.0379631,2644.0,2643.9,6.78229]
[1727383120309,0.0379631,2644.8,2644.0,3.0]
[1727383120511,0.0379631,2644.8,2644.7,3.78114]
[1727383120711,0.0379631,2644.8,2644.7,4.88591905]
[1727383121229,0.0379631,2644.8,2644.7,5.43591905]
[1727383121431,0.0379631,2644.8,2644.7,0.55]
[1727383121923,0.0379631,2644.8,2644.4,3.78148]
[1727383121924,0.0379631,2644.8,2644.5,0.55]
[1727383122122,0.7795,2644.7,2644.4,0.55]
[1727383122327,0.7795,2644.7,2644.4,4.33157]
[1727383123701,0.7795,2644.7,2644.3,0.55]
[1727383123892,0.7795,2644.7,2644.3,4.33168]
[1727383124614,4.56071,2644.7,2644.3,0.55]
[1727383127095,4.56071,2644.7,2644.1,0.55]
[1727383127287,4.56071,2644.7,2644.1,4.33199]
[1727383127490,8.34199,2644.7,2644.1,4.33199]
[1727383127793,3.78134,2644.6,2644.0,3.78211]
[1727383127991,3.78134,2644.6,2644.1,0.55]
[1727383128230,0.7795,2644.7,2644.3,0.55]
[1727383129027,3.78129,2644.6,2644.3,0.55]
[1727383129188,3.78129,2644.6,2644.2,0.55]
[1727383129393,3.78129,2644.6,2644.2,4.33185]
[1727383129938,0.7795,2644.7,2644.2,0.55]
[1727383130236,3.78157,2644.5,2644.0,0.55]
[1727383131425,3.78129,2644.6,2644.0,0.55]
[1727383131595,0.7795,2644.7,2644.4,0.55]
[1727383133794,0.7795,2644.7,2644.4,4.33149]
[1727383138306,0.0379631,2644.8,2644.4,4.33149]
[1727383139042,3.78122,2644.7,2644.3,0.55]
[1727383140341,3.78132,2644.6,2644.1,0.55]
[1727383140509,3.78143,2644.5,2644.1,4.332]
[1727383140910,3.78122,2644.7,2644.3,0.55]
[1727383142667,3.78132,2644.6,2644.3,0.55]
[1727383143039,3.78132,2644.6,2644.2,0.55]
[1727383144171,3.78132,2644.6,2644.2,4.33183]
[1727383144332,3.78132,2644.6,2644.2,5.2243453]
[1727383145444,0.0379631,2644.8,2644.2,5.2243453]
[1727383145771,0.0379631,2644.8,2642.9,0.79131353]
[1727383145772,3.0,2644.6,2642.9,0.79131353]
[1727383145975,3.0,2644.6,2641.8,3.78518]
[1727383145976,3.78341,2643.2,2641.8,3.78518]
[1727383146278,3.78463,2642.3,2640.9,0.0379631]
[1727383146445,0.7807,2642.5,2640.9,0.0379631]
[1727383146446,3.78516,2641.9,2641.0,3.78633]
[1727383146631,4.76578748,2642.4,2640.9,0.0379631]
[1727383146632,3.78458,2642.4,2640.9,0.0379631]
[1727383146838,0.7807,2643.2,2642.4,3.7843]
[1727383147140,3.7836,2643.0,2642.5,0.37843]
[1727383147354,3.7836,2643.0,2642.0,3.78492]
[1727383147738,3.78373,2642.9,2642.0,3.78492]
[1727383147952,4.56404,2643.2,2642.1,0.378492]
[1727383148169,3.0,2643.1,2641.2,3.78611]
[1727383148466,3.78403,2642.7,2641.0,0.3794]
[1727383148636,7.56813,2642.7,2641.6,3.7855]
[1727383148830,3.78416,2642.6,2641.7,0.42030941]
[1727383149271,3.78403,2642.7,2641.8,0.55]
[1727383149874,3.78417,2642.6,2641.8,0.55]
[1727383150044,3.78417,2642.6,2642.0,0.55]
[1727383150231,6.78346,2643.1,2641.9,0.39703094]
[1727383150430,3.78445,2642.4,2641.7,0.0379631]
[1727383150945,3.78459,2642.3,2641.7,0.0379631]
[1727383151335,3.78391,2642.8,2641.7,0.0379631]
[1727383151336,0.7807,2642.5,2641.7,0.0379631]
[1727383151534,7.57015,2642.0,2641.7,0.0379631]
[1727383151776,3.78489,2642.1,2641.7,0.0379631]
[1727383152063,3.78503,2642.0,2641.7,0.0379631]
[1727383152635,3.78503,2642.0,2641.8,0.55]
[1727383153459,3.78515,2641.9,2641.8,0.55]
[1727383156826,0.7807,2642.5,2641.8,0.55]
[1727383156827,3.78436,2642.5,2641.8,0.55]
[1727383157024,3.78323,2643.3,2641.8,4.67931043]
[1727383157224,3.7831,2643.4,2642.5,4.33428]
[1727383157387,3.7831,2643.4,2642.7,4.33399]
[1727383157388,3.78324,2643.3,2642.7,4.33399]
[1727383157717,3.7831,2643.4,2642.9,0.55]
[1727383157868,3.78341,2643.2,2642.9,0.99095764]
[1727383158193,3.78341,2643.2,2642.9,0.55]
[1727383158373,7.56624,2643.4,2642.7,0.55]
[1727383158575,3.78315,2643.3,2642.9,0.55]
[1727383160393,3.7831,2643.4,2642.9,0.55]
[1727383160580,3.78357,2643.0,2642.9,0.55]
[1727383160795,3.78344,2643.1,2642.9,0.55]
[1727383161372,7.56698,2643.1,2642.9,0.55]
[1727383161623,3.78357,2643.0,2642.9,0.55]
[1727383162116,3.78344,2643.1,2642.9,0.55]
[1727383163609,3.78332,2643.2,2642.9,0.55]
[1727383163918,3.78332,2643.2,2642.7,0.55]
[1727383164127,3.78332,2643.2,2642.7,0.928414]
[1727383164889,3.78351,2643.1,2642.7,0.928414]
[1727383165823,3.7841,2642.7,2642.1,3.78485]
[1727383166197,3.7841,2642.7,2642.0,3.7849]
[1727383166418,3.7841,2642.7,2642.2,3.78472]
[1727383166627,3.78423,2642.6,2642.0,3.7849]
[1727383166793,3.7841,2642.7,2642.0,3.7849]
[1727383166794,3.78438,2642.5,2642.0,3.7849]
[1727383167190,3.78438,2642.5,2641.8,7.57035]
[1727383167191,3.78444,2642.4,2641.8,7.57035]
[1727383167405,3.78444,2642.4,2641.9,3.78511]
[1727383168201,3.78432,2642.5,2642.0,3.78498]
[1727383168520,3.78432,2642.5,2642.1,0.55]
[1727383169833,7.5687,2642.5,2642.1,0.55]
[1727383170244,3.78432,2642.5,2642.0,0.55]
[1727383170441,3.78444,2642.4,2642.0,1.362037]
[1727383171069,7.56871,2642.5,2642.0,5.147037]
[1727383173013,7.56871,2642.5,2641.7,0.0379631]
[1727383173014,3.78496,2642.1,2641.7,0.0379631]
[1727383173213,3.78503,2642.0,2641.7,0.0379631]
[1727383173427,3.78516,2641.9,2641.7,0.0379631]
[1727383173627,0.7809,2642.3,2641.7,0.0379631]
[1727383173628,3.78495,2642.1,2641.7,0.0379631]
[1727383173846,3.78495,2642.1,2641.7,0.42031041]
[1727383174007,3.78439,2642.5,2641.7,0.42031041]
[1727383174203,0.7809,2642.7,2641.7,0.42031041]